fUSD/lending_fUSD_20250211
["ID","MTS","AMOUNT","RATE_DAILY","PERIOD"]
[352714665,1739269858481,-1651.21217775,0.00011099,2]
[352714666,1739269858490,-1651.21217775,0.00011099,2]
[352714667,1739269858499,-1651.21217775,0.00011099,2]
[352714668,1739269858508,-1651.21217775,0.00011099,2]
[352714669,1739269858517,-1651.21217775,0.00011099,2]
[352714670,1739269858526,-1651.21217775,0.00011099,2]
[352714671,1739269858535,-1651.21217775,0.00011099,2]
[352714672,1739269858544,-172.43323755,0.000111,2]
[352714673,1739269858553,-1651.21217775,0.000111,2]
[352714674,1739269858563,-961.66366066,0.000111,2]
[352714675,1739269858572,-150.0,0.00011101,2]
[352714676,1739269858581,-150.0,0.00011104,2]
[352714677,1739269858590,-150.0,0.00011108,2]
[352714678,1739269858599,-150.0,0.00011111,2]
[352714679,1739269858610,-150.0,0.00011117,2]
[352714680,1739269858619,-150.0,0.00011122,2]
[352714681,1739269858629,-300.0,0.00011126,2]
[352714682,1739269858639,-150.0,0.00011135,2]
[352714683,1739269858648,-500.0,0.00011136,2]
[352714684,1739269858657,-500.0,0.00011136,2]
[352714685,1739269858668,-500.0,0.00011136,2]
[352714686,1739269858677,-500.0,0.00011136,2]
[352714687,1739269858687,-500.0,0.00011136,2]
[352714688,1739269858695,-457.2572,0.00011136,2]
[352714689,1739269858705,-150.0,0.00011139,2]
[352714690,1739269858714,-150.0,0.00011141,2]
[352714691,1739269858723,-150.0,0.0001115,2]
[352714692,1739269858732,-150.0,0.00011153,2]
[352714693,1739269858741,-150.0,0.00011158,2]
[352714694,1739269858750,-150.0,0.00011166,2]
[352714695,1739269858759,-500.0,0.00011173,2]
[352714696,1739269858768,-500.0,0.00011173,2]
[352714697,1739269858777,-500.0,0.00011173,2]
[352714698,1739269858786,-500.0,0.00011173,2]
[352714699,1739269858795,-500.08582552,0.00011173,2]
[352714700,1739269858805,-207.75358841,0.00011173,2]
[352714701,1739269858815,-152.40426794,0.00011173,2]
[352714702,1739269858824,-500.0,0.00011173,2]
[352714703,1739269858834,-152.4296096,0.00011173,2]
[352714704,1739269858843,-152.73624777,0.00011173,2]
[352714705,1739269858852,-179.86529366,0.00011173,2]
[352714706,1739269858862,-150.0,0.00011177,2]
[352714707,1739269858871,-151.0,0.00011177,2]
[352714708,1739269858880,-500.0,0.00011177,2]
[352714709,1739269858892,-150.0,0.00011177,2]
[352714710,1739269858901,-2078.0,0.00011177,2]
[352714711,1739269858911,-15684.0,0.00011178,2]
[352714712,1739269858920,-251253.0,0.00011178,2]
[352714713,1739269858930,-150.0,0.00011182,2]
[352714714,1739269858939,-150.0,0.00011183,2]
[352714715,1739269858948,-250.6940852,0.00011188,2]
[352714716,1739269858957,-455.94559315,0.00011189,2]
[352714717,1739269858967,-2106.1982318,0.00011189,2]
[352714718,1739269858976,-839.8541627,0.00011189,2]
[352714719,1739269858985,-1169.4657054,0.00011189,2]
[352714720,1739269858994,-150.0,0.0001119,2]
[352714721,1739269859003,-2514.8019398,0.00011192,2]
[352714722,1739269859012,-2923.4056479,0.00011192,2]
[352714723,1739269859021,-1002.7863692,0.00011192,2]
[352714724,1739269859030,-1165.7185756,0.00011192,2]
[352714725,1739269859039,-1396.3427469,0.00011192,2]
[352714726,1739269859048,-1623.2197884,0.00011192,2]
[352714727,1739269859057,-302.3983155,0.00011192,2]
[352714728,1739269859066,-354.1025458,0.00011192,2]
[352714729,1739269859075,-2641.66971,0.00011192,2]
[352714730,1739269859084,-1323.12,0.00011196,2]
[352714731,1739269859093,-3673.94,0.00011197,2]
[352714732,1739269859103,-513.96,0.00011197,2]
[352714733,1739269859112,-1846.12,0.00011197,2]
[352714734,1739269859121,-2281.41,0.00011197,2]
[352714735,1739269859130,-2606.01,0.00011197,2]
[352714736,1739269859141,-1000.0,0.00011197,2]
[352714737,1739269859150,-1947.36,0.00011197,2]
[352714738,1739269859158,-500.0,0.00011197,2]
[352714739,1739269859168,-2176.27,0.00011197,2]
[352714740,1739269859178,-2775.56,0.00011197,2]
[352714741,1739269859188,-500.0,0.00011197,2]
[352714742,1739269859201,-398.72952442,0.00011197,2]
[352714743,1739269859210,-200.0,0.00011198,2]
[352714744,1739269859219,-500.0,0.00011198,2]
[352714745,1739269859228,-500.0,0.00011198,2]
[352714746,1739269859238,-500.0,0.00011198,2]
[352714747,1739269859247,-543.85,0.00011198,2]
[352714748,1739269859256,-300.0,0.00011198,2]
[352714749,1739269859266,-300.0,0.00011198,2]
[352714750,1739269859275,-1445006.95712732,0.00011198,3]
[352714751,1739269859298,-3802.17023051,0.00011198,3]
[352714752,1739269859343,-110725.49288742,0.00011198,3]
[352714753,1739269859353,-500.0,0.00011199,2]
[352714754,1739269859363,-151.0,0.00011199,2]
[352714755,1739269859372,-1323.12,0.00011199,2]
[352714756,1739269859382,-1323.12,0.00011199,2]
[352714757,1739269859391,-1323.12,0.00011199,2]
[352714758,1739269859400,-1323.12,0.00011199,2]
[352714759,1739269859410,-1323.12,0.00011199,2]
[352714760,1739269859419,-1323.12,0.00011199,2]
[352714761,1739269859429,-1323.12,0.00011199,2]
[352714762,1739269859438,-1323.12,0.00011199,2]
[352714763,1739269859447,-1323.12,0.00011199,2]
[352714764,1739269859457,-1323.12,0.00011199,2]
[352714765,1739269859466,-1323.12,0.00011199,2]
[352714766,1739269859475,-1323.12,0.00011199,2]
[352714767,1739269859484,-1323.12,0.00011199,2]
[352714768,1739269859494,-1323.12,0.00011199,2]
[352714769,1739269859503,-1323.12,0.00011199,2]
[352714770,1739269859513,-1323.12,0.00011199,2]
[352714771,1739269859522,-1323.12,0.00011199,2]
[352714772,1739269859532,-1323.12,0.00011199,2]
[352714773,1739269859542,-1323.12,0.00011199,2]
[352714774,1739269859552,-1323.33132363,0.00011199,2]
[352714775,1739269859561,-300.0,0.00011199,2]
[352714776,1739269859572,-219.89780956,0.00011199,2]
[352714777,1739269859581,-21977.70518991,0.000112,2]
[352714778,1739269860142,-492.18,0.000112,2]
[352714779,1739269860154,-2812.17995057,0.000112,2]
[352714780,1739269860166,-437.18063196,0.000112,2]
[352714781,1739269860177,-63852.75,0.000112,2]
[352714782,1739269860196,-14133.5692677,0.000112,2]
[352714783,1739269860220,-2329449.61783506,0.000112,2]
[352714784,1739269864306,2000.0,8.22e-05,2]
[352714785,1739269864336,100.0,8.22e-05,2]
[352714786,1739269864445,800.0,8.22e-05,2]
[352714787,1739269865090,2200.0,8.22e-05,2]
[352714789,1739269930978,414.3787,8.256e-05,2]
[352714790,1739270069602,4383.8249,8.256e-05,2]
[352714794,1739270266384,603.11,8.219e-05,2]
[352714802,1739270509724,348.0,0.0002,120]
[352714804,1739270969326,10000.0,0.0002,120]
[352714805,1739270977820,10000.0,0.0002,120]
[352714806,1739270985514,3379.0,0.0002,120]
[352714807,1739270992511,10000.0,0.0002,120]
[352714809,1739271031889,-2450.000002,8.836e-05,2]
[352714810,1739271031902,-7028.945698,8.836e-05,2]
[352714811,1739271031911,-280.48515367,8.87e-05,2]
[352714812,1739271031921,-5674.4116,8.973e-05,2]
[352714813,1739271031931,-4802.6099,8.973e-05,2]
[352714814,1739271031940,-285.46,9.016e-05,2]
[352714815,1739271031950,-1719.06,9.038e-05,2]
[352714816,1739271031959,-186.33,9.044e-05,2]
[352714817,1739271031969,-1500.0,9.066e-05,2]
[352714818,1739271031979,-280.48515366,9.082e-05,2]
[352714819,1739271031989,-1267.18,9.099e-05,2]
[352714820,1739271031998,-23900.0,9.126e-05,2]
[352714821,1739271032009,-1000.0,9.127e-05,2]
[352714822,1739271032019,-1852.42,9.236e-05,2]
[352714823,1739271032029,-576.14,9.26e-05,2]
[352714824,1739271032038,-150.0,9.26e-05,2]
[352714825,1739271032048,-167.62,9.293e-05,2]
[352714826,1739271032058,-3498.08,9.293e-05,2]
[352714827,1739271032067,-669.48,9.294e-05,2]
[352714828,1739271032077,-280.48515366,9.294e-05,2]
[352714829,1739271032086,-879.46,9.541e-05,2]
[352714830,1739271032096,-1388.81,9.541e-05,2]
[352714831,1739271032106,-200.0,9.559e-05,2]
[352714832,1739271032115,-2292.13,9.585e-05,2]
[352714833,1739271032125,-150.0,9.589e-05,2]
[352714834,1739271032135,-477.07399776,9.59e-05,2]
[352714835,1739271032147,-836.27000006,9.59e-05,2]
[352714836,1739271032167,-786.65600218,9.59e-05,2]
[352714837,1739271032178,-800.0,9.59e-05,2]
[352714838,1739271032187,-2200.0,9.59e-05,2]
[352714839,1739271032195,-1334.26,9.612e-05,2]
[352714840,1739271032205,-377.96233233,9.653e-05,2]
[352714841,1739271032215,-468.32,9.659e-05,2]
[352714842,1739271032224,-10201.59472391,9.67e-05,2]
[352714843,1739271032236,-9470.23540382,9.67e-05,2]
[352714844,1739271032248,-318.8643725,9.67e-05,2]
[352714845,1739271032259,-7477.47549977,9.67e-05,2]
[352714846,1739271032269,-150.0,9.719e-05,2]
[352714847,1739271032279,-150.0,9.719e-05,2]
[352714848,1739271032288,-228.19,9.781e-05,2]
[352714849,1739271032298,-541.48,9.819e-05,2]
[352714850,1739271032307,-150.0,9.836e-05,2]
[352714851,1739271032316,-2599.25896559,9.843e-05,2]
[352714852,1739271032328,-1798.25391992,9.843e-05,2]
[352714853,1739271032354,-3197.14999998,9.843e-05,2]
[352714854,1739271032365,-894.27408761,9.843e-05,2]
[352714855,1739271032377,-25.6130269,9.843e-05,2]
[352714856,1739271032387,-500.0,9.87e-05,2]
[352714857,1739271032396,-109.33291628,0.00010137,2]
[352714859,1739271032408,-114.02708372,0.00010137,2]
[352714861,1739271032417,-438.84,0.00010137,2]
[352714863,1739271032427,-150.0,0.00010137,2]
[352714865,1739271032437,-80.07291628,0.00010137,2]
[352714867,1739271032448,-223.53708372,0.00010137,2]
[352714869,1739271032458,-150.0,0.00010137,2]
[352714871,1739271032467,-346.79291628,0.00010137,2]
[352714874,1739271032479,-92.04708372,0.00010137,2]
[352714876,1739271032488,-499.78789668,0.0001014,2]
[352714878,1739271032499,-809.96318,0.0001014,2]
[352714926,1739271032768,-488.1012989,0.0001014,2]
[352714928,1739271032779,-217.84762442,0.0001014,2]
[352714930,1739271032789,-103.25238485,0.00010268,2]
[352714940,1739271032879,-255.77,0.00010268,2]
[352714943,1739271032890,-640.97761515,0.00010268,2]
[352714945,1739271032899,-150.0,0.00010278,2]
[352714947,1739271032909,-175.19,0.00010432,2]
[352714949,1739271032918,-1549.59,0.00010441,2]
[352714951,1739271032928,-878.24,0.00010441,2]
[352714953,1739271032937,-603.11,0.00010455,2]
[352714955,1739271032947,-200.0,0.000105,3]
[352714956,1739271032956,-300.0,0.00010548,2]
[352714958,1739271032965,-150.0,0.00010578,2]
[352714961,1739271032975,-150.74,0.00010578,2]
[352714962,1739271032985,-500.0,0.000106,3]
[352714965,1739271032995,-800.0,0.000107,3]
[352714967,1739271033004,-1100.0,0.000108,3]
[352714968,1739271033013,-300.66326871,0.00010858,2]
[352714970,1739271033023,-1400.0,0.000109,3]
[352714973,1739271033033,-150.0,0.00010943,2]
[352714975,1739271033043,-1152.10586708,0.00010957,3]
[352714977,1739271033054,-500.0,0.00010957,2]
[352714979,1739271033064,-500.0,0.00010957,2]
[352714980,1739271033074,-640.85237868,0.00010957,2]
[352714983,1739271033084,-500.0,0.00010958,2]
[352714985,1739271033094,-500.0,0.00010958,2]
[352714987,1739271033103,-500.0,0.00010958,2]
[352714989,1739271033112,-155.788179,0.00010958,2]
[352714991,1739271033122,-779.559692,0.00010958,2]
[352714993,1739271033131,-500.0,0.00010958,2]
[352714995,1739271033140,-1012.213298,0.00010958,2]
[352714996,1739271033150,-500.0,0.00010958,2]
[352714998,1739271033159,-500.0,0.00010958,2]
[352715001,1739271033169,-500.0,0.00010958,2]
[352715002,1739271033179,-156.566104,0.00010958,2]
[352715004,1739271033190,-500.0,0.00010958,2]
[352715007,1739271033200,-500.0,0.00010958,2]
[352715009,1739271033211,-500.0,0.00010958,2]
[352715011,1739271033221,-500.0,0.00010958,2]
[352715013,1739271033232,-500.0,0.00010958,2]
[352715015,1739271033243,-500.0,0.00010958,2]
[352715017,1739271033253,-500.0,0.00010958,2]
[352715019,1739271033263,-500.0,0.00010958,2]
[352715021,1739271033272,-500.0,0.00010958,2]
[352715023,1739271033283,-500.0,0.00010958,2]
[352715025,1739271033292,-500.0,0.00010958,2]
[352715027,1739271033302,-500.0,0.00010958,2]
[352715029,1739271033311,-500.0,0.00010958,2]
[352715031,1739271033320,-500.0,0.00010958,2]
[352715033,1739271033330,-500.0,0.00010958,2]
[352715035,1739271033340,-500.0,0.00010958,2]
[352715037,1739271033349,-500.0,0.00010958,2]
[352715038,1739271033359,-500.0,0.00010958,2]
[352715041,1739271033369,-194.22871336,0.00010958,2]
[352715043,1739271033383,-305.77128664,0.00010958,2]
[352715045,1739271033393,-500.0,0.00010958,2]
[352715047,1739271033403,-500.0,0.00010958,2]
[352715049,1739271033413,-595.88086342,0.00010958,2]
[352715051,1739271033424,-500.0,0.00010958,2]
[352715053,1739271033449,-106.34784994,0.00010958,2]
[352715055,1739271033471,-403.69131524,0.00010958,2]
[352715057,1739271033480,-500.0,0.00010958,2]
[352715059,1739271033490,-418.52898055,0.00010958,2]
[352715062,1739271033502,-81.47101945,0.00010958,2]
[352715064,1739271033511,-500.0,0.00010958,2]
[352715066,1739271033521,-500.0,0.00010958,2]
[352715068,1739271033530,-500.0,0.00010958,2]
[352715070,1739271033540,-500.0,0.00010958,2]
[352715072,1739271033550,-500.0,0.00010958,2]
[352715074,1739271033560,-500.0,0.00010958,2]
[352715076,1739271033569,-2.42924127,0.00010958,2]
[352715516,1739271037882,-497.57075873,0.00010958,2]
[352715518,1739271037892,-500.0,0.00010958,2]
[352715520,1739271037902,-500.0,0.00010958,2]
[352715522,1739271037912,-500.0,0.00010958,2]
[352715524,1739271037921,-500.0,0.00010958,2]
[352715526,1739271037932,-500.0,0.00010958,2]
[352715528,1739271037941,-500.0,0.00010958,2]
[352715530,1739271037950,-500.0,0.00010958,2]
[352715532,1739271037960,-500.0,0.00010958,2]
[352715534,1739271037969,-500.0,0.00010958,2]
[352715536,1739271037978,-690.82,0.00010958,2]
[352715538,1739271037987,-500.0,0.00010958,2]
[352715540,1739271037996,-500.0,0.00010958,2]
[352715542,1739271038007,-832.5,0.00010958,2]
[352715544,1739271038015,-500.0,0.00010958,2]
[352715546,1739271038025,-500.0,0.00010958,2]
[352715548,1739271038034,-500.0,0.00010958,2]
[352715550,1739271038044,-500.0,0.00010958,2]
[352715552,1739271038053,-500.0,0.00010958,2]
[352715554,1739271038062,-500.0,0.00010958,2]
[352715556,1739271038071,-500.0,0.00010958,2]
[352715558,1739271038080,-500.0,0.00010958,2]
[352715560,1739271038089,-500.0,0.00010958,2]
[352715562,1739271038098,-500.0,0.00010958,2]
[352715564,1739271038107,-502.77767544,0.00010958,2]
[352715566,1739271038116,-500.0,0.00010958,2]
[352715568,1739271038125,-500.0,0.00010958,2]
[352715569,1739271038134,-500.0,0.00010958,2]
[352715571,1739271038143,-500.0,0.00010958,2]
[352715573,1739271038153,-500.0,0.00010958,2]
[352715575,1739271038162,-500.0,0.00010958,2]
[352715577,1739271038171,-500.0,0.00010958,2]
[352715579,1739271038181,-229.88589284,0.00010958,2]
[352715581,1739271038190,-500.0,0.00010958,2]
[352715583,1739271038200,-500.0,0.00010958,2]
[352715586,1739271038209,-500.0,0.00010958,2]
[352715589,1739271038218,-594.9005552,0.00010958,2]
[352715596,1739271038251,-37.4794448,0.00010958,2]
[352715598,1739271038261,-301.82383192,0.00010958,2]
[352715601,1739271038279,-198.17616808,0.00010958,2]
[352715603,1739271038288,-500.0,0.00010958,2]
[352715605,1739271038301,-443.94107235,0.00010958,2]
[352715761,1739271039828,-56.05892765,0.00010958,2]
[352715763,1739271039838,-323.47499013,0.00010958,2]
[352715775,1739271039935,-176.52500987,0.00010958,2]
[352715777,1739271039945,-500.0,0.00010958,2]
[352715779,1739271039955,-500.0,0.00010958,2]
[352715781,1739271039964,-500.0,0.00010958,2]
[352715783,1739271039976,-500.0,0.00010958,2]
[352715785,1739271039986,-255.51110279,0.00010958,2]
[352715787,1739271039998,-244.48889721,0.00010958,2]
[352715789,1739271040009,-500.0,0.00010958,2]
[352715791,1739271040018,-500.0,0.00010958,2]
[352715793,1739271040027,-500.0,0.00010958,2]
[352715795,1739271040037,-500.0,0.00010958,2]
[352715797,1739271040046,-500.0,0.00010958,2]
[352715799,1739271040055,-500.0,0.00010958,2]
[352715801,1739271040065,-500.0,0.00010958,2]
[352715803,1739271040074,-500.0,0.00010958,2]
[352715805,1739271040083,-176.99065412,0.00010958,2]
[352715807,1739271040093,-467.29826232,0.00010958,2]
[352715809,1739271040102,-500.0,0.00010958,2]
[352715811,1739271040111,-500.0,0.00010958,2]
[352715813,1739271040121,-500.0,0.00010958,2]
[352715815,1739271040130,-606.79260012,0.00010958,2]
[352715817,1739271040140,-500.0,0.00010958,2]
[352715819,1739271040149,-500.0,0.00010958,2]
[352715821,1739271040158,-500.0,0.00010958,2]
[352715823,1739271040168,-500.0,0.00010958,2]
[352715825,1739271040178,-500.0,0.00010958,2]
[352715827,1739271040187,-500.0,0.00010958,2]
[352715829,1739271040197,-755.66,0.00010958,2]
[352715831,1739271040206,-500.0,0.00010958,2]
[352715833,1739271040216,-500.0,0.00010958,2]
[352715835,1739271040226,-500.0,0.00010958,2]
[352715837,1739271040235,-500.0,0.00010958,2]
[352715839,1739271040244,-500.0,0.00010958,2]
[352715841,1739271040253,-500.0,0.00010958,2]
[352715842,1739271040262,-1065.49,0.00010958,2]
[352715843,1739271040272,-500.0,0.00010958,2]
[352715844,1739271040281,-500.0,0.00010958,2]
[352715845,1739271040290,-1078.29,0.00010958,2]
[352715846,1739271040299,-500.0,0.00010958,2]
[352715847,1739271040309,-500.0,0.00010958,2]
[352715848,1739271040318,-500.0,0.00010958,2]
[352715849,1739271040327,-500.0,0.00010958,2]
[352715850,1739271040337,-500.0,0.00010958,2]
[352715851,1739271040347,-500.0,0.00010958,2]
[352715853,1739271040357,-522.41958623,0.00010958,2]
[352715855,1739271040371,-98.04041377,0.00010958,2]
[352715857,1739271040380,-501.10167766,0.00010958,2]
[352715859,1739271040390,-503.85118657,0.00010958,2]
[352715861,1739271040399,-500.0,0.00010958,2]
[352715863,1739271040409,-500.0,0.00010958,2]
[352715866,1739271040419,-1054.96,0.00010958,2]
[352715867,1739271040428,-500.0,0.00010958,2]
[352715869,1739271040437,-588.99,0.00010958,2]
[352715871,1739271040447,-368.98054308,0.00010958,2]
[352715874,1739271040458,-131.01945692,0.00010958,2]
[352715876,1739271040467,-500.0,0.00010958,2]
[352715878,1739271040476,-172.33854308,0.00010958,2]
[352715887,1739271040552,-293.073,0.00010958,2]
[352715890,1739271040570,-336.53845692,0.00010958,2]
[352715892,1739271040580,-185.960671,0.00010958,2]
[352715894,1739271040589,-568.71,0.00010958,2]
[352715896,1739271040601,-375.22260271,0.00010958,2]
[352716140,1739271042967,-124.77739729,0.00010958,2]
[352716142,1739271042976,-500.0,0.00010958,2]
[352716143,1739271042986,-500.0,0.00010958,2]
[352716145,1739271042996,-500.0,0.00010958,2]
[352716146,1739271043005,-500.0,0.00010958,2]
[352716148,1739271043017,-500.0,0.00010958,2]
[352716150,1739271043026,-500.0,0.00010958,2]
[352716152,1739271043036,-1414.79,0.00010958,2]
[352716153,1739271043046,-500.0,0.00010958,2]
[352716155,1739271043055,-1050.29,0.00010958,2]
[352716156,1739271043064,-500.0,0.00010958,2]
[352716158,1739271043074,-773.16,0.00010958,2]
[352716160,1739271043083,-1126.49,0.00010958,2]
[352716161,1739271043093,-500.0,0.00010958,2]
[352716163,1739271043102,-500.0,0.00010958,2]
[352716165,1739271043112,-530.40543059,0.00010958,2]
[352716166,1739271043121,-500.0,0.00010958,2]
[352716168,1739271043131,-500.0,0.00010958,2]
[352716170,1739271043140,-505.26018842,0.00010958,2]
[352716171,1739271043150,-500.0,0.00010958,2]
[352716173,1739271043159,-944.8,0.00010958,2]
[352716175,1739271043168,-505.5572931,0.00010958,2]
[352716176,1739271043178,-537.75,0.00010958,2]
[352716178,1739271043188,-500.0,0.00010958,2]
[352716180,1739271043197,-927.9,0.00010958,2]
[352716181,1739271043207,-500.0,0.00010958,2]
[352716183,1739271043216,-1316.05,0.00010958,2]
[352716185,1739271043225,-500.0,0.00010958,2]
[352716186,1739271043234,-190.171211,0.00010958,2]
[352716188,1739271043243,-1208.9,0.00010958,2]
[352716190,1739271043253,-500.0,0.00010958,2]
[352716191,1739271043262,-1082.5,0.00010958,2]
[352716193,1739271043271,-500.0,0.00010958,2]
[352716195,1739271043281,-540.77,0.00010958,2]
[352716197,1739271043290,-500.0,0.00010958,2]
[352716198,1739271043299,-500.0,0.00010958,2]
[352716200,1739271043308,-690.19,0.00010958,2]
[352716202,1739271043317,-500.0,0.00010958,2]
[352716203,1739271043326,-625.57,0.00010958,2]
[352716205,1739271043336,-500.0,0.00010958,2]
[352716207,1739271043345,-500.0,0.00010958,2]
[352716209,1739271043354,-500.0,0.00010958,2]
[352716210,1739271043363,-500.0,0.00010958,2]
[352716212,1739271043373,-548.66,0.00010958,2]
[352716214,1739271043382,-500.0,0.00010958,2]
[352716215,1739271043392,-500.0,0.00010958,2]
[352716217,1739271043402,-500.0,0.00010958,2]
[352716219,1739271043411,-500.0,0.00010958,2]
[352716221,1739271043421,-891.75,0.00010958,2]
[352716222,1739271043431,-513.73,0.00010958,2]
[352716224,1739271043441,-500.0,0.00010958,2]
[352716226,1739271043451,-500.0,0.00010958,2]
[352716228,1739271043460,-686.47,0.00010958,2]
[352716229,1739271043470,-503.50028185,0.00010958,2]
[352716231,1739271043480,-500.0,0.00010958,2]
[352716233,1739271043489,-500.0,0.00010958,2]
[352716235,1739271043499,-500.0,0.00010958,2]
[352716236,1739271043508,-552.61,0.00010958,2]
[352716238,1739271043517,-921.61,0.00010958,2]
[352716240,1739271043527,-500.0,0.00010958,2]
[352716241,1739271043536,-500.0,0.00010958,2]
[352716243,1739271043545,-994.24,0.00010958,2]
[352716245,1739271043555,-500.0,0.00010958,2]
[352716247,1739271043564,-580.41897928,0.00010958,2]
[352716248,1739271043573,-500.0,0.00010958,2]
[352716250,1739271043583,-420.8640045,0.00010958,2]
[352716252,1739271043592,-500.0,0.00010958,2]
[352716253,1739271043606,-520.83,0.00010958,2]
[352716255,1739271043615,-500.0,0.00010958,2]
[352716257,1739271043625,-520.83,0.00010958,2]
[352716259,1739271043634,-500.0,0.00010958,2]
[352716260,1739271043644,-500.0,0.00010958,2]
[352716262,1739271043654,-847.91,0.00010958,2]
[352716264,1739271043663,-500.0,0.00010958,2]
[352716266,1739271043675,-500.0,0.00010958,2]
[352716267,1739271043686,-585.81787053,0.00010958,2]
[352716269,1739271043696,-500.0,0.00010958,2]
[352716271,1739271043705,-1029.89,0.00010958,2]
[352716273,1739271043715,-500.0,0.00010958,2]
[352716274,1739271043724,-500.0,0.00010958,2]
[352716276,1739271043734,-1070.28,0.00010958,2]
[352716277,1739271043743,-500.0,0.00010958,2]
[352716279,1739271043753,-510.35,0.00010958,2]
[352716281,1739271043763,-729.93,0.00010958,2]
[352716283,1739271043772,-500.01,0.00010958,2]
[352716284,1739271043782,-500.0,0.00010958,2]
[352716286,1739271043792,-692.66,0.00010958,2]
[352716288,1739271043801,-500.0,0.00010958,2]
[352716290,1739271043811,-500.0,0.00010958,2]
[352716291,1739271043820,-500.0,0.00010958,2]
[352716293,1739271043829,-500.0,0.00010958,2]
[352716295,1739271043839,-562.5,0.00010958,2]
[352716296,1739271043849,-530.54473825,0.00010958,2]
[352716298,1739271043859,-500.0,0.00010958,2]
[352716300,1739271043869,-944.98,0.00010958,2]
[352716302,1739271043878,-500.0,0.00010958,2]
[352716303,1739271043888,-500.0,0.00010958,2]
[352716305,1739271043898,-1204.64,0.00010958,2]
[352716307,1739271043908,-726.96,0.00010958,2]
[352716309,1739271043917,-500.0,0.00010958,2]
[352716310,1739271043927,-502.88942784,0.00010958,2]
[352716312,1739271043937,-500.0,0.00010958,2]
[352716315,1739271043947,-500.0,0.00010958,2]
[352716316,1739271043956,-1197.21,0.00010958,2]
[352716318,1739271043966,-506.0581741,0.00010958,2]
[352716319,1739271043975,-502.0591427,0.00010958,2]
[352716320,1739271043984,-731.93,0.00010958,2]
[352716321,1739271043993,-500.0,0.00010958,2]
[352716322,1739271044003,-500.0,0.00010958,2]
[352716323,1739271044011,-500.0,0.00010958,2]
[352716324,1739271044020,-500.0,0.00010958,2]
[352716325,1739271044029,-500.0,0.00010958,2]
[352716326,1739271044038,-500.0,0.00010958,2]
[352716327,1739271044048,-500.0,0.00010958,2]
[352716328,1739271044057,-502.74524634,0.00010958,2]
[352716329,1739271044065,-566.05,0.00010958,2]
[352716330,1739271044074,-500.0,0.00010958,2]
[352716331,1739271044083,-500.0,0.00010958,2]
[352716332,1739271044092,-501.85892391,0.00010958,2]
[352716333,1739271044103,-520.83,0.00010958,2]
[352716334,1739271044113,-500.0,0.00010958,2]
[352716335,1739271044122,-500.0,0.00010958,2]
[352716336,1739271044132,-1272.46,0.00010958,2]
[352716338,1739271044141,-500.0,0.00010958,2]
[352716339,1739271044151,-500.0,0.00010958,2]
[352716340,1739271044160,-520.83,0.00010958,2]
[352716342,1739271044171,-500.0,0.00010958,2]
[352716344,1739271044181,-500.0,0.00010958,2]
[352716346,1739271044191,-500.0,0.00010958,2]
[352716348,1739271044201,-500.0,0.00010958,7]
[352716350,1739271044210,-503.41885983,0.00010958,2]
[352716352,1739271044219,-926.16,0.00010958,2]
[352716354,1739271044229,-500.0,0.00010958,2]